bitfinex-derivatives/quotes_SOLF0:USTF0_20251210
["timestamp","ask_amount","ask_price","bid_price","bid_amount"]
[1765384685179,0.05313311,136.13,136.11,0.04975763]
[1765384685380,0.05313311,136.13,136.11,10.03195763]
[1765384685577,0.05313311,136.13,136.11,6.66195763]
[1765384686890,3.27313311,136.13,136.11,0.04975763]
[1765384689586,0.05313311,136.13,136.11,0.04975763]
[1765384689794,0.05313311,136.13,136.11,3.41975763]
[1765384690896,0.05313311,136.13,136.11,10.03185763]
[1765384691196,0.05313311,136.13,136.12,3.37]
[1765384691689,0.05313311,136.13,136.12,62.44]
[1765384692087,0.05313311,136.13,136.12,65.81]
[1765384692396,3.22,136.18,136.12,65.81]
[1765384693393,0.04894325,136.16,136.12,65.81]
[1765384693786,0.04894325,136.16,136.13,3.37]
[1765384694186,3.16,136.22,136.13,3.37]
[1765384695291,0.05618584,136.19,136.16,3.36311224]
[1765384695497,0.05618584,136.19,136.17,65.75]
[1765384696088,0.05618584,136.19,136.18,3.31]
[1765384696496,3.16,136.25,136.18,3.31]
[1765384697192,9.7662,136.24,136.18,3.31]
[1765384697392,9.7662,136.24,136.2,0.05625927]
[1765384697587,3.16,136.23,136.2,0.05625927]
[1765384700607,9.7654,136.26,136.2,3.36625927]
[1765384700786,3.16,136.26,136.21,3.31]
[1765384702689,3.16,136.25,136.21,3.31]
[1765384703093,3.16,136.25,136.21,65.73]
[1765384704792,3.16,136.24,136.21,62.42]
[1765384704994,3.16,136.24,136.21,0.05186555]
[1765384705906,9.7663,136.24,136.21,0.05186555]
[1765384706095,3.24,136.23,136.21,0.05186555]
[1765384706292,9.8463,136.24,136.21,0.05186555]
[1765384708204,3.2,136.22,136.21,0.05186555]
[1765384710608,3.2,136.2,136.15,65.47]
[1765384711094,6.609,136.18,136.15,3.07]
[1765384711296,3.2,136.18,136.15,3.07]
[1765384711497,3.25005724,136.18,136.15,0.04693567]
[1765384712097,9.8095,136.17,136.15,0.04693567]
[1765384712803,6.6095,136.17,136.15,0.04693567]
[1765384713204,0.05005724,136.18,136.15,3.11693567]
[1765384714303,3.37005724,136.18,136.15,3.11693567]
[1765384715706,0.05005724,136.18,136.15,3.11693567]
[1765384718912,0.05005724,136.18,136.16,3.24]
[1765384720013,0.05005724,136.18,136.16,9.8499]
[1765384720313,0.05005724,136.18,136.16,3.24]
[1765384721304,3.37005724,136.18,136.15,3.28693567]
[1765384721504,0.05005724,136.18,136.16,65.66]
[1765384721701,3.37005724,136.18,136.15,0.04693567]
[1765384729022,9.97915724,136.18,136.15,0.04693567]
[1765384729323,3.32,136.17,136.15,0.04693567]
[1765384732123,3.37005724,136.18,136.15,3.28693567]
[1765384732624,3.37005724,136.18,136.15,0.04693567]
[1765384734727,3.37005724,136.18,136.15,3.28693567]
[1765384735418,3.37005724,136.18,136.15,0.04693567]
[1765384735620,3.37005724,136.18,136.15,3.28693567]
[1765384738627,6.38894484,136.18,136.15,0.04693567]
[1765384738819,6.3388876,136.16,136.15,0.04693567]
[1765384739019,3.32,136.15,136.1,62.42]
[1765384739327,3.32,136.13,136.1,62.42]
[1765384739919,3.37237282,136.13,136.1,0.04782972]
[1765384740127,3.32,136.12,136.1,0.04782972]
[1765384741021,3.32,136.11,136.1,0.04782972]
[1765384746421,0.05237282,136.13,136.1,0.04782972]
[1765384746422,3.43237282,136.13,136.1,0.04782972]
[1765384748439,3.43237282,136.13,136.1,3.39782972]
[1765384748645,3.43237282,136.13,136.1,6.41671732]
[1765384749135,0.05237282,136.13,136.1,6.41671732]
[1765384749944,0.05237282,136.13,136.11,3.35]
[1765384753232,0.05237282,136.13,136.11,9.9623]
[1765384753439,0.05237282,136.13,136.12,3.35]
[1765384756230,3.36,136.19,136.14,9.7908]
[1765384757326,3.36,136.17,136.15,0.0503146]
[1765384760422,0.05491462,136.18,136.17,3.18]
[1765384761434,6.3788876,136.23,136.17,9.7892]
[1765384761933,3.36,136.22,136.17,9.7892]
[1765384762137,3.36,136.24,136.17,3.18]
[1765384762441,3.36,136.23,136.19,0.05127621]
[1765384762933,3.36,136.21,136.19,0.05127621]
[1765384763136,9.9677,136.21,136.19,0.05127621]
[1765384763439,3.36,136.2,136.19,0.05127621]
[1765384763927,6.607,136.23,136.19,3.23127621]
[1765384764124,3.36,136.24,136.19,3.23127621]
[1765384764329,6.6055,136.26,136.2,3.18]
[1765384764527,9.9655,136.26,136.22,3.23480235]
[1765384764731,3.36,136.25,136.22,3.23480235]
[1765384764931,9.9656,136.25,136.22,3.23480235]
[1765384765940,3.36,136.23,136.22,0.05480235]
[1765384766335,6.3788876,136.23,136.22,0.05480235]
[1765384766737,6.3788876,136.23,136.15,62.42]
[1765384766738,3.36,136.21,136.16,3.18]
[1765384766936,6.3788876,136.2,136.16,3.18]
[1765384767135,3.36,136.2,136.16,3.18]
[1765384767731,3.40670978,136.19,136.17,0.04724582]
[1765384771445,10.01550978,136.19,136.17,0.04724582]
[1765384771643,3.36,136.18,136.17,0.04724582]
[1765384772749,0.04670978,136.19,136.17,3.22724582]
[1765384773841,3.23670978,136.19,136.17,0.04724582]
[1765384778156,0.04670978,136.19,136.17,3.28724582]
[1765384779750,3.23670978,136.19,136.17,0.04724582]
[1765384779953,3.23670978,136.19,136.17,3.28724582]
[1765384780148,0.04670978,136.19,136.17,3.28724582]
[1765384783454,0.04670978,136.19,136.17,9.89664582]
[1765384783647,0.04670978,136.19,136.18,3.05]
[1765384783844,6.6059,136.25,136.19,3.05]
[1765384784050,3.28,136.26,136.19,3.05]
[1765384784956,9.8856,136.25,136.22,3.05]
[1765384785151,9.8856,136.25,136.22,3.1024533]
[1765384785856,3.28,136.24,136.22,0.0524533]
[1765384788863,9.8861,136.24,136.22,0.0524533]
[1765384789052,3.28,136.23,136.22,0.0524533]
[1765384789253,3.28,136.26,136.22,3.1024533]
[1765384790858,3.23,136.25,136.22,3.1024533]
[1765384792060,115.12584289,136.3,136.22,3.1024533]
[1765384792268,3.23,136.26,136.22,3.1024533]
[1765384793962,9.8351,136.26,136.22,3.1024533]
[1765384795261,6.6051,136.26,136.22,3.1024533]
[1765384795463,3.29,136.25,136.22,3.1024533]
[1765384797054,9.8956,136.25,136.22,3.1024533]
[1765384799062,6.6052,136.26,136.23,3.35]
[1765384799254,9.8952,136.26,136.23,3.35]
[1765384799667,6.6052,136.26,136.23,3.35]
[1765384800657,6.6052,136.26,136.22,0.0524533]
[1765384800658,3.29,136.25,136.22,0.0524533]
[1765384800861,3.29,136.25,136.22,3.4024533]
[1765384801264,3.29,136.26,136.22,3.4024533]
[1765384802965,9.8956,136.25,136.22,3.4024533]
[1765384803374,3.29,136.24,136.22,0.0524533]
[1765384803672,3.29,136.24,136.22,3.4024533]
[1765384803873,6.6064,136.24,136.22,3.4024533]
[1765384804071,3.29,136.26,136.22,3.4024533]
[1765384804775,3.29,136.26,136.22,0.0524533]
[1765384805377,3.29,136.25,136.22,0.0524533]
[1765384806068,3.29,136.24,136.22,0.0524533]
[1765384809564,3.29,136.26,136.22,3.2924533]
[1765384809969,3.29,136.26,136.22,0.0524533]
[1765384811775,3.29,136.26,136.22,3.4424533]
[1765384813483,9.834,136.29,136.22,3.4424533]
[1765384813775,9.834,136.29,136.23,3.39]
[1765384814376,3.23,136.29,136.24,3.39]
[1765384814676,3.23,136.29,136.25,3.44060236]
[1765384816975,9.8335,136.3,136.25,3.44060236]
[1765384817677,3.23,136.29,136.25,3.44060236]
[1765384818864,3.23,136.28,136.25,0.05060236]
[1765384819180,3.23,136.27,136.25,0.05060236]
[1765384820579,3.23,136.24,136.19,65.77]
[1765384820771,3.23,136.24,136.2,3.39]
[1765384821477,0.04681054,136.23,136.21,0.05002043]
[1765384821874,6.65341054,136.23,136.21,0.05002043]
[1765384822276,3.23,136.22,136.21,0.05002043]
[1765384823076,3.23,136.19,136.16,3.39]
[1765384823574,6.6081,136.2,136.16,3.39]
[1765384823779,3.23,136.25,136.18,3.39]
[1765384823982,0.05317285,136.23,136.21,3.39]
[1765384824678,3.28317285,136.23,136.2,3.44181193]
[1765384826876,9.88977285,136.23,136.2,3.44181193]
[1765384827277,9.88977285,136.23,136.2,0.05181193]
[1765384827278,3.23,136.22,136.2,0.05181193]
[1765384827877,7.94230841,136.21,136.15,142.68560166]
[1765384828078,3.23,136.2,136.14,65.77]
[1765384828278,102.7723,136.23,136.16,3.39]
[1765384828279,3.23,136.23,136.16,3.39]
[1765384828881,3.27972824,136.21,136.18,3.43980585]
[1765384830090,3.27972824,136.21,136.18,0.04980585]
[1765384834982,9.88732824,136.21,136.18,0.04980585]
[1765384835283,3.1,136.2,136.18,0.04980585]
[1765384839486,9.7081,136.2,136.18,0.04980585]
[1765384839684,3.1,136.19,136.18,0.04980585]
[1765384840396,3.1,136.2,136.18,0.04980585]
[1765384842603,9.7085,136.19,136.18,0.04980585]
[1765384843203,3.1,136.17,136.14,65.54]
[1765384843405,3.1,136.21,136.15,3.14]
[1765384843701,3.1,136.19,136.15,3.14]
[1765384843904,3.1,136.23,136.15,3.14]
[1765384844095,0.04687793,136.2,136.18,0.0520142]
[1765384844392,3.1,136.19,136.18,0.0520142]
[1765384845608,9.7085,136.19,136.18,0.0520142]
[1765384845997,3.1,136.17,136.11,3.14]
[1765384846401,9.7103,136.16,136.11,3.14]
[1765384846896,9.75739274,136.15,136.12,3.18653604]
[1765384848510,6.611,136.14,136.12,3.18653604]
[1765384848704,9.711,136.14,136.12,0.04653604]
[1765384848908,6.6114,136.13,136.12,0.04653604]
[1765384852020,3.1,136.14,136.12,0.04653604]
[1765384859323,3.1,136.12,136.07,9.7539]
[1765384860221,3.1,136.12,136.08,6.6138]
[1765384860428,3.15023697,136.11,136.09,0.04737886]
[1765384860722,3.1,136.2,136.11,3.14]
[1765384860927,3.1,136.2,136.14,3.02067223]
[1765384861221,9.7084,136.2,136.14,9.63147223]
[1765384861426,3.1,136.19,136.14,9.63147223]
[1765384861616,0.05103281,136.18,136.15,3.19552105]
[1765384861815,0.05103281,136.18,136.17,9.7495]
[1765384863126,3.1,136.25,136.19,9.7482]
[1765384863430,3.1,136.25,136.19,6.16067223]
[1765384863928,9.7056,136.25,136.19,6.16067223]
[1765384864115,3.38,136.24,136.19,6.16067223]
[1765384864315,3.43665784,136.23,136.21,0.0487069]
[1765384864934,0.05665784,136.23,136.21,3.1287069]
[1765384866030,0.05665784,136.23,136.22,3.08]
[1765384869533,0.05665784,136.23,136.21,0.0487069]
[1765384869835,3.32665784,136.23,136.21,0.0487069]
[1765384870426,3.27,136.22,136.17,65.68]
[1765384870828,3.27,136.22,136.17,3.26]
[1765384871032,3.27,136.2,136.17,3.26]
[1765384871543,3.32386195,136.2,136.17,3.31305328]
[1765384872036,0.05386195,136.2,136.17,3.31305328]
[1765384873542,3.32386195,136.2,136.17,0.05305328]
[1765384873938,6.6086,136.19,136.17,0.05305328]
[1765384874138,3.27,136.18,136.17,0.05305328]
[1765384875951,3.27,136.16,136.11,3.26]
[1765384876448,3.27,136.15,136.11,3.26]
[1765384876950,0.04974082,136.14,136.12,3.31430954]
[1765384878132,3.31974082,136.14,136.12,0.05430954]
[1765384878542,0.04974082,136.14,136.12,3.31430954]
[1765384881249,9.8785,136.2,136.13,3.26]
[1765384882149,3.27,136.23,136.15,3.26]
[1765384882339,0.05188067,136.2,136.18,0.04960754]
[1765384882851,3.32188067,136.2,136.18,0.04960754]
[1765384884051,0.05188067,136.2,136.18,3.30960754]
[1765384885149,0.05188067,136.2,136.18,0.04960754]
[1765384886650,0.05188067,136.2,136.18,3.30960754]
[1765384887055,0.05188067,136.2,136.18,0.04960754]
[1765384887056,9.93008067,136.2,136.18,0.04960754]
[1765384887257,3.27,136.18,136.12,6.27754597]
[1765384887445,3.27,136.18,136.13,3.26]
[1765384887640,3.27,136.19,136.15,3.26]
[1765384888247,0.05628266,136.18,136.16,3.30951361]
[1765384888447,0.05628266,136.18,136.16,6.32705958]
[1765384888643,0.05628266,136.18,136.17,3.26]
[1765384892558,0.05628266,136.18,136.16,3.30951361]
[1765384893451,3.27,136.17,136.16,0.04951361]
[1765384894057,9.8795,136.17,136.16,0.04951361]
[1765384894454,3.35,136.14,136.11,3.08]
[1765384894763,3.35,136.15,136.11,3.08]
[1765384895363,0.05549192,136.14,136.12,0.0510743]
[1765384895554,3.35,136.13,136.12,0.0510743]
[1765384897046,6.66649192,136.14,136.12,0.0510743]
[1765384897047,13.03403789,136.14,136.12,0.0510743]
[1765384897247,3.40549192,136.14,136.12,0.0510743]
[1765384897450,0.05549192,136.14,136.12,3.1310743]
[1765384900066,0.05549192,136.14,136.12,0.0510743]
[1765384900762,3.40549192,136.14,136.12,0.0510743]
[1765384901266,3.35,136.13,136.12,0.0510743]
[1765384902056,3.35,136.12,136.04,16.70874392]
[1765384902263,3.35,136.12,136.04,3.08]
[1765384902766,3.35,136.1,136.05,3.08]
[1765384902963,0.05325524,136.09,136.06,0.05331895]
[1765384903157,0.05325524,136.09,136.06,3.13331895]
[1765384904570,3.40325524,136.09,136.06,3.13331895]
[1765384906669,10.01675524,136.09,136.06,3.13331895]
[1765384906971,10.01675524,136.09,136.02,62.42]
[1765384906972,3.35,136.08,136.02,62.42]
[1765384907470,3.35,136.06,136.03,3.08]
[1765384907769,3.35,136.08,136.03,3.08]
[1765384907969,3.39784941,136.07,136.04,3.12962132]
[1765384908166,0.04784941,136.07,136.04,3.12962132]
[1765384909861,0.04784941,136.07,136.05,3.08]
[1765384910670,3.39784941,136.07,136.04,3.12962132]
[1765384910873,0.04784941,136.07,136.04,3.12962132]
[1765384913274,3.35,136.14,136.04,3.12962132]
[1765384913472,3.35,136.13,136.04,3.08]
[1765384914284,3.35,136.13,136.05,3.08]
[1765384914474,0.04966301,136.1,136.08,0.05665723]
[1765384914781,0.04966301,136.1,136.08,3.13665723]
[1765384915166,3.39966301,136.1,136.08,0.05665723]
[1765384915672,10.01256301,136.1,136.08,0.05665723]
[1765384916075,3.39966301,136.1,136.08,0.05665723]
[1765384917377,10.01256301,136.1,136.08,0.05665723]
[1765384917572,3.35,136.09,136.02,3.08]
[1765384918174,3.35,136.09,136.03,3.08]
[1765384918482,0.05401837,136.07,136.05,3.12857209]
[1765384922689,0.05401837,136.07,136.05,9.74387209]
[1765384922986,0.05401837,136.07,136.06,3.08]
[1765384924181,8.02808086,136.07,136.05,0.04857209]
[1765384924386,3.25,136.06,136.05,0.04857209]
[1765384925989,6.66831837,136.07,136.05,0.04857209]
[1765384926592,0.05401837,136.07,136.05,3.39857209]
[1765384928500,0.05401837,136.07,136.06,3.19]
[1765384929198,6.6118,136.13,136.08,3.19]
[1765384929498,3.19,136.18,136.09,3.19]
[1765384930001,3.19,136.18,136.1,3.19]
[1765384930204,0.04824468,136.15,136.13,3.23956069]
[1765384931501,0.04824468,136.15,136.13,0.04956069]
[1765384931502,3.23824468,136.15,136.13,0.04956069]
[1765384932705,6.65874468,136.15,136.13,0.04956069]
[1765384933002,3.19,136.14,136.13,0.04956069]
[1765384933600,9.84874468,136.15,136.13,0.04956069]
[1765384934200,3.19,136.14,136.13,0.04956069]
[1765384935894,9.84874468,136.15,136.13,0.04956069]
[1765384936095,6.65874468,136.15,136.13,3.23956069]
[1765384936592,0.04824468,136.15,136.13,3.23956069]
[1765384938205,3.19,136.18,136.13,3.23956069]
[1765384938504,3.19,136.19,136.13,3.23956069]
[1765384939292,0.05377477,136.17,136.13,3.23956069]
[1765384941603,3.24377477,136.17,136.13,3.23956069]
[1765384943307,0.05377477,136.17,136.13,3.23956069]
[1765384944304,3.24377477,136.17,136.13,3.23956069]
[1765384944507,3.24377477,136.17,136.13,0.04956069]
[1765384944811,3.19,136.16,136.13,0.04956069]
[1765384945505,9.8005,136.15,136.13,0.04956069]
[1765384946003,3.19,136.14,136.13,0.04956069]
[1765384949601,3.19,136.11,136.07,9.8039]
[1765384949809,3.19,136.11,136.07,3.19]
[1765384950604,0.04933971,136.1,136.08,0.05237489]
[1765384951007,0.04933971,136.1,136.08,3.24237489]
[1765384953105,3.23933971,136.1,136.08,0.05237489]
[1765384953307,0.04933971,136.1,136.08,3.24237489]
[1765384956810,3.09933971,136.1,136.08,0.05237489]
[1765384957108,9.71233971,136.1,136.08,0.05237489]
[1765384957305,3.05,136.09,136.08,0.05237489]
[1765384958508,3.05,136.09,136.01,3.26]
[1765384958911,3.05,136.09,136.02,3.26]
[1765384959513,0.05471136,136.07,136.04,3.31318988]
[1765384960114,6.66911136,136.07,136.04,3.31318988]
[1765384962809,9.665,136.06,136.04,0.05318988]
[1765384967421,0.05471136,136.07,136.04,3.31318988]
[1765384969414,3.05,136.05,136.0,31.29183584]
[1765384969614,107.62853553,136.06,136.0,25.46993735]
[1765384969615,3.05,136.03,136.0,25.46993735]
[1765384970123,3.05,136.03,136.0,3.26]
[1765384970416,3.10071154,136.03,136.0,3.31433329]
[1765384971219,0.05071154,136.03,136.0,3.31433329]
[1765384971408,3.05,136.09,136.02,3.26]
[1765384971614,3.05,136.09,136.03,3.26]
[1765384971813,9.6638,136.09,136.03,3.26]
[1765384972012,3.05,136.09,136.03,3.26]
[1765384972514,0.0521754,136.07,136.05,3.30942651]
[1765384978430,3.1021754,136.07,136.05,0.04942651]
[1765384978930,6.6148,136.06,136.05,0.04942651]
[1765384979233,9.6648,136.06,136.05,0.04942651]
[1765384981321,0.0521754,136.07,136.05,3.30942651]
[1765384983042,3.05,136.18,136.08,106.1397]
[1765384983330,3.05,136.18,136.09,3.26]
[1765384983526,3.05,136.18,136.12,3.26]
[1765384984231,3.05,136.18,136.14,0.04731105]
[1765384984232,0.0472301,136.16,136.14,0.04731105]
[1765384984728,3.3772301,136.16,136.14,0.04731105]
[1765384985635,9.9873301,136.16,136.14,0.04731105]
[1765384986731,6.612,136.12,136.07,12.36350724]
[1765384986932,3.33,136.15,136.08,3.28]
[1765384987538,9.9405,136.15,136.09,3.28]
[1765384987727,0.04732794,136.13,136.11,0.04700008]
[1765384987922,0.04732794,136.13,136.11,3.32700008]
[1765384995240,3.07,136.12,136.11,0.04700008]
[1765384996232,9.72882794,136.13,136.11,0.04700008]
[1765384996432,3.11732794,136.13,136.11,0.04700008]
[1765384999945,9.72882794,136.13,136.11,0.04700008]
[1765385002133,3.07,136.12,136.11,0.04700008]
[1765385007753,9.6799936,136.13,136.11,3.27700008]
[1765385007754,0.04732794,136.13,136.11,3.27700008]
[1765385008149,3.11732794,136.13,136.11,3.27700008]
[1765385008450,0.04732794,136.13,136.11,3.27700008]
[1765385010743,3.11732794,136.13,136.11,3.27700008]
[1765385010939,0.04732794,136.13,136.12,3.23]
[1765385012158,0.04732794,136.13,136.12,9.8419]
[1765385013944,0.04732794,136.13,136.12,3.23]
[1765385014748,9.9399,136.17,136.13,3.2]
[1765385015149,3.33,136.17,136.14,3.2]
[1765385015762,3.38525156,136.17,136.14,3.25037168]
[1765385017860,0.05525156,136.17,136.14,3.25037168]
[1765385018559,6.6084,136.2,136.17,3.2]
[1765385018962,3.33,136.22,136.17,3.2]
[1765385019158,6.35116566,136.21,136.14,6.22116566]
[1765385019359,3.33,136.2,136.15,3.2]
[1765385019550,3.37828759,136.19,136.16,3.25462182]
[1765385019753,9.98728759,136.19,136.16,3.25462182]
[1765385019961,6.65728759,136.19,136.16,3.25462182]
[1765385023684,0.04828759,136.19,136.17,3.2]
[1765385023880,0.04828759,136.19,136.18,6.22116566]
[1765385024080,0.04828759,136.19,136.18,68.64116566]
[1765385024273,3.33,136.24,136.19,3.2]
[1765385024582,3.33,136.23,136.19,3.2]
[1765385025183,3.37692203,136.22,136.2,0.05140931]
[1765385025574,6.35116566,136.21,136.2,0.05140931]
[1765385026973,3.33,136.2,136.14,75.25206566]
[1765385027470,3.33,136.17,136.13,65.62]
[1765385027981,0.05177644,136.16,136.14,6.27173692]
[1765385028179,0.05543335,136.16,136.14,3.25057126]
[1765385029473,0.05543335,136.16,136.14,9.86147126]
[1765385029676,0.05543335,136.16,136.14,3.25057126]
[1765385030975,0.05543335,136.16,136.15,3.2]
[1765385032287,3.33,136.2,136.15,3.2]
[1765385033278,0.04761417,136.19,136.15,3.2]
[1765385035281,3.37761417,136.19,136.15,3.2]
[1765385035674,0.04761417,136.19,136.15,3.2]
[1765385037080,0.04761417,136.19,136.18,6.22116566]
[1765385037281,3.33,136.24,136.19,3.2]
[1765385037676,6.6066,136.23,136.19,3.2]
[1765385038584,0.05339747,136.22,136.2,3.25396986]
[1765385038979,6.66059747,136.22,136.2,3.25396986]
[1765385040076,0.05339747,136.22,136.2,3.25396986]
[1765385040681,12.95616566,136.27,136.2,3.25396986]
[1765385040882,3.33,136.27,136.23,3.2]
[1765385041774,0.04705717,136.26,136.24,0.04650996]
[1765385041975,3.37705717,136.26,136.24,0.04650996]
[1765385045991,9.98225717,136.26,136.24,0.04650996]
[1765385046187,3.26,136.25,136.24,0.04650996]
[1765385046582,11.36336677,136.26,136.17,3.38]
[1765385046583,3.26,136.23,136.17,3.38]
[1765385046782,3.26,136.21,136.17,3.38]
[1765385047187,3.26,136.21,136.15,65.78]
[1765385047591,3.26,136.19,136.16,3.38]
[1765385047792,3.30732753,136.19,136.16,3.43617927]
[1765385050396,3.12732753,136.19,136.16,3.43617927]
[1765385051691,3.12732753,136.19,136.16,0.05617927]
[1765385052396,0.04732753,136.19,136.16,3.10617927]
[1765385053000,3.12732753,136.19,136.16,3.10617927]
[1765385056106,3.12732753,136.19,136.16,0.05617927]
[1765385056294,3.08,136.18,136.16,0.05617927]
[1765385057498,3.08,136.18,136.16,3.10617927]
[1765385057705,3.08,136.18,136.16,0.05617927]
[1765385058598,3.12732753,136.19,136.16,3.10617927]
[1765385059816,0.04732753,136.19,136.16,3.10617927]
[1765385062001,0.04732753,136.19,136.18,3.05]
[1765385062506,3.08,136.23,136.18,9.6588]
[1765385062711,3.08,136.25,136.19,3.05]
[1765385063599,3.12953728,136.23,136.21,0.04816198]
[1765385066210,9.73613728,136.23,136.21,0.04816198]
[1765385066415,3.08,136.22,136.21,0.04816198]
[1765385071218,9.687,136.22,136.21,0.04816198]
[1765385074318,3.3,136.19,136.16,62.42]
[1765385074517,3.3,136.19,136.14,9.8705]
[1765385074518,3.3,136.19,136.15,3.26]
[1765385075109,3.3,136.17,136.15,3.26]
[1765385075419,0.05409944,136.17,136.15,3.30991908]
[1765385080916,3.3,136.21,136.16,3.26]
[1765385081912,0.0566384,136.2,136.16,3.26]
[1765385082617,0.0566384,136.2,136.16,7.9711096]
[1765385082819,0.0566384,136.2,136.17,3.26]
[1765385083912,0.0566384,136.2,136.18,3.26]
[1765385086022,0.0566384,136.2,136.18,9.869]
[1765385086420,0.0566384,136.2,136.19,3.26]
[1765385086729,3.3566384,136.2,136.18,0.0471572]
[1765385087930,3.3566384,136.2,136.18,3.3071572]
[1765385088125,0.0566384,136.2,136.18,3.3071572]
[1765385089421,0.0566384,136.2,136.19,9.8685]
[1765385089621,3.3,136.26,136.2,3.26]
[1765385090823,3.3,136.23,136.22,0.05350064]
[1765385097036,9.9066,136.23,136.22,0.05350064]
[1765385099941,3.3,136.23,136.22,0.05350064]
[1765385101262,6.65261329,136.24,136.22,3.31350064]
[1765385101427,0.04651329,136.24,136.22,3.31350064]
[1765385101628,3.3,136.29,136.22,3.31350064]
[1765385102327,3.3,136.28,136.22,3.31350064]
[1765385102525,3.3,136.28,136.22,3.26]
[1765385102742,3.35513505,136.26,136.24,0.05543811]
[1765385103239,3.35513505,136.26,136.24,3.31543811]
[1765385103440,3.35513505,136.26,136.24,0.05543811]
[1765385104441,3.27,136.25,136.24,0.05543811]
[1765385104941,3.27,136.25,136.19,20.23674392]
[1765385104942,3.27,136.23,136.19,3.37]
[1765385106141,3.3244239,136.22,136.2,0.05312604]
[1765385106847,9.9315239,136.22,136.2,0.05312604]
[1765385107043,6.31503383,136.21,136.2,0.05312604]
[1765385107546,9.9615239,136.22,136.2,0.05312604]
[1765385108134,3.3,136.21,136.2,0.05312604]
[1765385108939,3.4144239,136.22,136.2,0.05312604]
[1765385110645,0.0544239,136.22,136.2,3.29312604]
[1765385110847,0.0544239,136.22,136.2,6.30815987]
[1765385111046,0.0544239,136.22,136.21,3.24]
[1765385111938,3.1044239,136.22,136.2,0.05312604]
[1765385112351,3.05,136.21,136.2,0.05312604]
[1765385112741,102.792,136.2,136.14,16.86874392]
[1765385112945,3.05,136.18,136.14,3.24]
[1765385113553,9.6589,136.19,136.15,3.24]
[1765385113751,3.01503383,136.21,136.15,3.24]
[1765385114051,0.05343557,136.19,136.17,0.04980056]
[1765385114362,3.10343557,136.19,136.17,0.04980056]
[1765385114652,3.05,136.18,136.17,0.04980056]
[1765385117457,0.05343557,136.19,136.17,3.28980056]
[1765385119163,3.10343557,136.19,136.17,0.04980056]
[1765385119856,0.05343557,136.19,136.17,0.04980056]
[1765385120054,0.05343557,136.19,136.17,3.28980056]
[1765385120760,3.10343557,136.19,136.17,0.04980056]
[1765385121357,3.05,136.18,136.17,0.04980056]
[1765385121658,9.71203557,136.19,136.17,0.04980056]
[1765385125055,3.05,136.18,136.17,0.04980056]
[1765385125257,9.71203557,136.19,136.17,0.04980056]
[1765385126267,3.05,136.18,136.17,0.04980056]
[1765385126461,6.06503383,136.18,136.17,0.04980056]
[1765385127259,12.67403383,136.18,136.17,0.04980056]
[1765385127667,3.05,136.16,136.13,3.24]
[1765385128770,3.10143936,136.16,136.13,3.28648701]
[1765385131563,9.71173936,136.16,136.13,0.04648701]
[1765385131760,3.05,136.15,136.13,0.04648701]
[1765385132862,9.6606,136.15,136.13,0.04648701]
[1765385133081,3.05,136.14,136.13,0.04648701]
[1765385135876,6.06503383,136.14,136.08,6.6134]
[1765385136167,6.06503383,136.14,136.01,102.9318]
[1765385136168,3.09,136.09,136.05,3.1]
[1765385136473,3.09,136.08,136.05,3.1]
[1765385136971,3.13768366,136.08,136.05,0.05223214]
[1765385138072,0.04768366,136.08,136.05,3.15223214]
[1765385138273,0.04768366,136.08,136.07,3.1]
[1765385138679,3.13768366,136.08,136.05,0.05223214]
[1765385140175,3.09,136.06,136.05,0.05223214]
[1765385145080,9.7053,136.05,136.03,62.42]
[1765385145578,3.09,136.04,135.98,3.1]
[1765385145879,3.09,136.02,135.98,3.1]
[1765385146074,0.0556545,136.01,135.99,3.15196418]
[1765385147172,0.0556545,136.01,136.0,3.1]
[1765385148378,3.1456545,136.01,135.99,0.05196418]